{"text_format":"1","workbook":"xlsx","n_sheets":3,"sheets":["Blad1","Blad2","Blad3"],"not_rendered":{"charts":0,"images":2,"macros":1,"external_links":0,"defined_names":0,"comments":0,"pivot_tables":0},"unopened":[],"bounds":{"document_bytes":16777216,"sheet_cells":100000,"rows_first":2000,"rows_last":500,"rows_between":2000,"halvings":0,"cell_chars":16384,"cell_head_chars":4096},"cells_cut":0,"cells_raw":0,"read":"whole","date_system":"1900"}

{"sheet":"Blad1","index":0,"n_rows":50,"n_cols":21,"rows_kept":50,"cut":false,"hidden":false,"merged":[]}
["beurten"]
[1,null,null,null,null,null,null,null,null,null,null,null,null,null,null,null,null,null,"Vrij",null,"speler1"]
[{"$f":"IF(C2<>\"\",A2+1,\"\")","v":""},null,null,null,null,"Naam speler A:",null,null,null,"Datum:",null,"Naam speler B:",null,null,null,null,null,null,"Band",null,"speler2"]
[{"$f":"IF(C3<>\"\",A3+1,\"\")","v":""},null,null,null,null,null,null,null,null,null,null,null,null,null,null,null,null,null,"3-band",null,"speler3"]
["",null,null,null,null,null,null,null,null,"2022-02-22",null,null,null,null,null,null,null,null,"kader",null,"speler4"]
["",null,null,null,null,null,null,null,null,null,null,null,null,null,null,null,null,null,null,null,"speler5"]
["",null,null,null,null,null,null,null,null,"Discipline:",null,null,null,null,null,null,null,null,null,null,"speler6"]
["",null,null,null,null,null,null,null,null,null,null,null,null,null,null,null,null,null,null,null,"speler7"]
["",null,null,null,null,null,null,null,null,"Vrij",null,null,null,null,null,null,null,null,null,null,"speler8"]
[""]
[""]
["",null,null,null,null,null,null,null,null,null,null,null,null,null,null,null,null,null,"macro ctrl+p"]
["",null,null,null,null,null,null,null,null,"Beurten:"]
[""]
[""]
[""]
[""]
[""]
[""]
[""]
["",null,null,null,null,"kies speler A "]
["",null,null,null,null,"kies speler B "]
["",null,null,null,null,"vul na iedere beurt de punten in het groene vak en druk enter"]
[""]
[""]
[""]
[""]
[""]
[""]
[""]
[""]
[""]
[""]
[""]
[""]
[""]
[""]
[""]
[""]
[""]
[""]
[""]
[""]
[""]
[""]
[""]
[""]
[""]
[""]
[""]

{"sheet":"Blad2","index":1,"n_rows":1,"n_cols":9,"rows_kept":1,"cut":false,"hidden":false,"merged":[]}
["datum","discipline","beurten","Speler A","Punten A","HR-speler A","Speler B","Punten B","HR-speler B"]

{"sheet":"Blad3","index":2,"n_rows":0,"n_cols":0,"rows_kept":0,"cut":false,"hidden":false,"merged":[]}